Publisher Label,Publisher URI,"Supplier","Net Amount £","Organisational Unit","Merchant Category Code","Purpose","Payment Date"
"Wolverhampton City Council","http://opendatacommunities.org/id/metropolitan-district-council/wolverhampton","DMARC ANALYZER",157.79,"Strategic ICTS (ICT Serv Budget)","5734","Computing - Maint Agreements","30/04/2020"
"Wolverhampton City Council","http://opendatacommunities.org/id/metropolitan-district-council/wolverhampton","AMZNMKTPLACE AMAZON.CO",-9.99,"Power2 Team","5999","Direct Work With Children","30/04/2020"
"Wolverhampton City Council","http://opendatacommunities.org/id/metropolitan-district-council/wolverhampton","AMZNMktplace",14.16,"Power2 Team","5999","Direct Work With Children","30/04/2020"
"Wolverhampton City Council","http://opendatacommunities.org/id/metropolitan-district-council/wolverhampton","AMZNMktplace",17.02,"Power2 Team","5999","Direct Work With Children","30/04/2020"
"Wolverhampton City Council","http://opendatacommunities.org/id/metropolitan-district-council/wolverhampton","AMZNMktplace",14.12,"Power2 Team","5999","Direct Work With Children","30/04/2020"
"Wolverhampton City Council","http://opendatacommunities.org/id/metropolitan-district-council/wolverhampton","AMZNMktplace",5.82,"Power2 Team","5999","Direct Work With Children","30/04/2020"
"Wolverhampton City Council","http://opendatacommunities.org/id/metropolitan-district-council/wolverhampton","AMZNMktplace",4.76,"Power2 Team","5999","Direct Work With Children","30/04/2020"
"Wolverhampton City Council","http://opendatacommunities.org/id/metropolitan-district-council/wolverhampton","GOOGLE  ADS5477893156",66.38,"Regional Adoption Agency","5968","R4317","30/04/2020"
"Wolverhampton City Council","http://opendatacommunities.org/id/metropolitan-district-council/wolverhampton","ARGOS LTD",336.94,"LAC Transitions Team","5310","Client Allowances","30/04/2020"
"Wolverhampton City Council","http://opendatacommunities.org/id/metropolitan-district-council/wolverhampton","SCREWFIX DIRECT",5.48,"COVID 19 - Food Distribution Hub","5200","Materials","30/04/2020"
"Wolverhampton City Council","http://opendatacommunities.org/id/metropolitan-district-council/wolverhampton","BOOKER LIMITED WOLVERH",215.93,"ALV - Darts & Comedy","5811","-","30/04/2020"
"Wolverhampton City Council","http://opendatacommunities.org/id/metropolitan-district-council/wolverhampton","WHOLESALE SERVICES",1.99,"COVID 19 - Food Distribution Hub","7399","Subscriptions","30/04/2020"
"Wolverhampton City Council","http://opendatacommunities.org/id/metropolitan-district-council/wolverhampton","WM MORRISONS STORE",107.4,"Bradley Resource Centre","5411","Provisions (Not for resale)","30/04/2020"
"Wolverhampton City Council","http://opendatacommunities.org/id/metropolitan-district-council/wolverhampton","PO OLD HILL 0676",125,"LAC Transitions Team","6011","Client Allowances","30/04/2020"
"Wolverhampton City Council","http://opendatacommunities.org/id/metropolitan-district-council/wolverhampton","ROYAL BK OF SCOTLAND",50,"LAC Transitions Team","6011","Gas","30/04/2020"
"Wolverhampton City Council","http://opendatacommunities.org/id/metropolitan-district-council/wolverhampton","HALFORDS ON LINE",229.97,"Independant Living Services","5940","Equipment - Health and Safety","30/04/2020"
"Wolverhampton City Council","http://opendatacommunities.org/id/metropolitan-district-council/wolverhampton","EASYLINK UK",98.25,"Telecare","5969","Equipment - Purchase","30/04/2020"
"Wolverhampton City Council","http://opendatacommunities.org/id/metropolitan-district-council/wolverhampton","EASYLINK UK",121.75,"Telecare","5969","Equipment - Purchase","30/04/2020"
"Wolverhampton City Council","http://opendatacommunities.org/id/metropolitan-district-council/wolverhampton","Amazon.co.uk C49LZ0SF5",130.24,"Inclusion Support","5969","Books","30/04/2020"
"Wolverhampton City Council","http://opendatacommunities.org/id/metropolitan-district-council/wolverhampton","ARGOS LTD",53.28,"Inclusion Support","5310","Computing - Purchase of Hardware","30/04/2020"
"Wolverhampton City Council","http://opendatacommunities.org/id/metropolitan-district-council/wolverhampton","ALBRIGHTON FEEDS LTD",131.5,"Parks - Ranger Service","5995","Materials","30/04/2020"
"Wolverhampton City Council","http://opendatacommunities.org/id/metropolitan-district-council/wolverhampton","E C STRAITON STAFF",13.59,"Northicote Farm","0742","Professional fees","30/04/2020"
"Wolverhampton City Council","http://opendatacommunities.org/id/metropolitan-district-council/wolverhampton","ROYAL BK OF SCOTLAND",60,"LAC Transitions Team","6011","Independant Living Allowance","29/04/2020"
"Wolverhampton City Council","http://opendatacommunities.org/id/metropolitan-district-council/wolverhampton","AMZNMktplace",4.93,"Power2 Team","5999","Direct Work With Children","29/04/2020"
"Wolverhampton City Council","http://opendatacommunities.org/id/metropolitan-district-council/wolverhampton","GEN REGISTER OFFICE",14,"Lac Transitions","9399","Services - Supplies & Services to users","29/04/2020"
"Wolverhampton City Council","http://opendatacommunities.org/id/metropolitan-district-council/wolverhampton","ASDA GROCERIES ONLINE",5,"Key to Inspiration","5411","Educ Trips, Holidays, Outings, Activity","29/04/2020"
"Wolverhampton City Council","http://opendatacommunities.org/id/metropolitan-district-council/wolverhampton","SCREWFIX DIRECT",97.42,"COVID 19 - Food Distribution Hub","5200","Equipment - Purchase","29/04/2020"
"Wolverhampton City Council","http://opendatacommunities.org/id/metropolitan-district-council/wolverhampton","SCREWFIX DIRECT",64.95,"COVID 19 - Food Distribution Hub","5200","Cleaning Supplies and Materials","29/04/2020"
"Wolverhampton City Council","http://opendatacommunities.org/id/metropolitan-district-council/wolverhampton","CARRIER BAG SHOP",60,"COVID 19 - Food Distribution Hub","7399","Materials","29/04/2020"
"Wolverhampton City Council","http://opendatacommunities.org/id/metropolitan-district-council/wolverhampton","ARGOS LTD",279.12,"LAC Transitions Team","5310","Client Allowances","29/04/2020"
"Wolverhampton City Council","http://opendatacommunities.org/id/metropolitan-district-council/wolverhampton","BARCLAYS",50,"LAC Transitions Team","6011","Provisions (Not for resale)","29/04/2020"
"Wolverhampton City Council","http://opendatacommunities.org/id/metropolitan-district-council/wolverhampton","ROOKERY Sainsburys Ba",50,"LAC Transitions Team","6011","Client Allowances","29/04/2020"
"Wolverhampton City Council","http://opendatacommunities.org/id/metropolitan-district-council/wolverhampton","NCFE.ORG.UK",44,"Discretionary Fund","8220","Exam Expenses (Non-Employee)","29/04/2020"
"Wolverhampton City Council","http://opendatacommunities.org/id/metropolitan-district-council/wolverhampton","WWW.ICO.ORG.UK",40,"Business Support Services","9399","Subscriptions","29/04/2020"
"Wolverhampton City Council","http://opendatacommunities.org/id/metropolitan-district-council/wolverhampton","COMPANY CARDS LTD",183.5,"Technical Support","2741","Materials","29/04/2020"
"Wolverhampton City Council","http://opendatacommunities.org/id/metropolitan-district-council/wolverhampton","ADVANCED CARD BURE",12.1,"Technical Support","5099","Computing - Purchase of Software","29/04/2020"
"Wolverhampton City Council","http://opendatacommunities.org/id/metropolitan-district-council/wolverhampton","IDC WRISTBANDS",101.53,"Technical Support","5699","Computing - Purchase of Software","29/04/2020"
"Wolverhampton City Council","http://opendatacommunities.org/id/metropolitan-district-council/wolverhampton","PAYPAL  PRINTEDMUGS",230.75,"Technical Support","2741","Computing - Purchase of Software","29/04/2020"
"Wolverhampton City Council","http://opendatacommunities.org/id/metropolitan-district-council/wolverhampton","ARGOS LTD",40.99,"CIN/CP Social Work Unit - Area 5","5310","Comms - Mobile Telephones","29/04/2020"
"Wolverhampton City Council","http://opendatacommunities.org/id/metropolitan-district-council/wolverhampton","EB  BEYOND CORONAVIRUS",130,"Workforce Development","7399","Training Expenses","29/04/2020"
"Wolverhampton City Council","http://opendatacommunities.org/id/metropolitan-district-council/wolverhampton","EB  BEYOND CORONAVIRUS",195,"Workforce Development","7399","Training Expenses","29/04/2020"
"Wolverhampton City Council","http://opendatacommunities.org/id/metropolitan-district-council/wolverhampton","CO-OP GROUP 070362",8.1,"Northicote Farm","5411","Provisions (Not for resale)","29/04/2020"
"Wolverhampton City Council","http://opendatacommunities.org/id/metropolitan-district-council/wolverhampton","AMZNMktplace",35.38,"COVID 19 - Homeless Accommodation","5999","Equipment - Health and Safety","28/04/2020"
"Wolverhampton City Council","http://opendatacommunities.org/id/metropolitan-district-council/wolverhampton","PAYPAL  WELLGOODONL EB",53.8,"COVID 19 - Homeless Accommodation","8999","Equipment - Health and Safety","28/04/2020"
"Wolverhampton City Council","http://opendatacommunities.org/id/metropolitan-district-council/wolverhampton","AMZNMktplace",8.01,"Power2 Team","5999","Direct Work With Children","28/04/2020"
"Wolverhampton City Council","http://opendatacommunities.org/id/metropolitan-district-council/wolverhampton","GOOGLE  ADS9680351324",500,"Communications & Marketing - General","5968","R4317","28/04/2020"
"Wolverhampton City Council","http://opendatacommunities.org/id/metropolitan-district-council/wolverhampton","AMZNMktplace",1238.69,"COVID 19 - Food Distribution Hub","5999","Equipment - Purchase","28/04/2020"
"Wolverhampton City Council","http://opendatacommunities.org/id/metropolitan-district-council/wolverhampton","WP-INDUSTRIAL WORKWEAR",96.9,"COVID 19 - Food Distribution Hub","5691","Protective Clothing","28/04/2020"
"Wolverhampton City Council","http://opendatacommunities.org/id/metropolitan-district-council/wolverhampton","WM MORRISONS STORE",19.44,"Bradley Resource Centre","5411","Provisions (Not for resale)","28/04/2020"
"Wolverhampton City Council","http://opendatacommunities.org/id/metropolitan-district-council/wolverhampton","NoteMachine ATM",20,"LAC Transitions Accommodation","6011","Accommodation Costs","28/04/2020"
"Wolverhampton City Council","http://opendatacommunities.org/id/metropolitan-district-council/wolverhampton","PRIORY ROOMS BULL",91.8,"Service Director Children & Young People","7399","Conference Expenses","28/04/2020"
"Wolverhampton City Council","http://opendatacommunities.org/id/metropolitan-district-council/wolverhampton","CardtronicsUK",60,"LAC Transitions Team","6011","Client Allowances","28/04/2020"
"Wolverhampton City Council","http://opendatacommunities.org/id/metropolitan-district-council/wolverhampton","E.F.G. HOUSEWARES LIMI",-150,"COVID 19 - Personal Protective equipment","5099","Cleaning Supplies and Materials","28/04/2020"
"Wolverhampton City Council","http://opendatacommunities.org/id/metropolitan-district-council/wolverhampton","123 REG LTD",9.99,"Technical Support","5968","Computing - Purchase of Software","28/04/2020"
"Wolverhampton City Council","http://opendatacommunities.org/id/metropolitan-district-council/wolverhampton","RONTEC BILSTON",13.75,"Ernest Bold Court","5541","Provisions (Not for resale)","28/04/2020"
"Wolverhampton City Council","http://opendatacommunities.org/id/metropolitan-district-council/wolverhampton","ASDA SUPERSTORE",207.47,"Key to Inspiration","5411","Provisions (Not for resale)","27/04/2020"
"Wolverhampton City Council","http://opendatacommunities.org/id/metropolitan-district-council/wolverhampton","SAINSBURYS 0853",110.53,"Key to Inspiration","5411","Provisions (Not for resale)","27/04/2020"
"Wolverhampton City Council","http://opendatacommunities.org/id/metropolitan-district-council/wolverhampton","ARGOS LTD",44.95,"LAC Transitions Team","5310","Independant Living Allowance","27/04/2020"
"Wolverhampton City Council","http://opendatacommunities.org/id/metropolitan-district-council/wolverhampton","SEENIN",70.85,"Childrens with Disabilities Team","5651","Section 17","27/04/2020"
"Wolverhampton City Council","http://opendatacommunities.org/id/metropolitan-district-council/wolverhampton","PO OLD HILL 0676",100,"LAC Transitions Team","6011","Client Allowances","27/04/2020"
"Wolverhampton City Council","http://opendatacommunities.org/id/metropolitan-district-council/wolverhampton","POST OFFICE COUNTER",1.63,"Regional Adoption Agency","9402","Comms - Postage","27/04/2020"
"Wolverhampton City Council","http://opendatacommunities.org/id/metropolitan-district-council/wolverhampton","CT WOLVERHAMPTON",35,"LAC Transitions Team","8398","Client Allowances","27/04/2020"
"Wolverhampton City Council","http://opendatacommunities.org/id/metropolitan-district-council/wolverhampton","CardtronicsUK",60,"LAC Transitions Team","6011","Provisions (Not for resale)","27/04/2020"
"Wolverhampton City Council","http://opendatacommunities.org/id/metropolitan-district-council/wolverhampton","WWW.VOUCHEREXPRESS.CO.",245.75,"Youth Offending Team","5947","Provisions (Not for resale)","27/04/2020"
"Wolverhampton City Council","http://opendatacommunities.org/id/metropolitan-district-council/wolverhampton","WWW.VOUCHEREXPRESS.CO.",245.75,"Youth Offending Team","5947","Provisions (Not for resale)","27/04/2020"
"Wolverhampton City Council","http://opendatacommunities.org/id/metropolitan-district-council/wolverhampton","DC PAYMENTS",40,"LAC Team","6011","Client Transport","27/04/2020"
"Wolverhampton City Council","http://opendatacommunities.org/id/metropolitan-district-council/wolverhampton","DC PAYMENTS",40,"Looked After Team 2","6011","Electricity","27/04/2020"
"Wolverhampton City Council","http://opendatacommunities.org/id/metropolitan-district-council/wolverhampton","APPLE.COM/BILL",9.99,"Managing Director","5735","Computing - Purchase of Software","27/04/2020"
"Wolverhampton City Council","http://opendatacommunities.org/id/metropolitan-district-council/wolverhampton","Kindle Svcs",-5.93,"LAC Transitions Team","5735","Financial Assistance In Exceptional Circ","27/04/2020"
"Wolverhampton City Council","http://opendatacommunities.org/id/metropolitan-district-council/wolverhampton","Kindle Svcs WX3844HN5",5.93,"LAC Transitions Team","5735","Financial Assistance In Exceptional Circ","27/04/2020"
"Wolverhampton City Council","http://opendatacommunities.org/id/metropolitan-district-council/wolverhampton","ROBERT DYAS HOLDNG LTD",199.94,"LAC Transitions Team","5251","Client Allowances","27/04/2020"
"Wolverhampton City Council","http://opendatacommunities.org/id/metropolitan-district-council/wolverhampton","ROYAL BK OF SCOTLAND",200,"LAC Transitions Team","6011","Client Allowances","27/04/2020"
"Wolverhampton City Council","http://opendatacommunities.org/id/metropolitan-district-council/wolverhampton","E.F.G. HOUSEWARES LIMI",5125,"COVID 19 - Personal Protective equipment","5099","Cleaning Supplies and Materials","27/04/2020"
"Wolverhampton City Council","http://opendatacommunities.org/id/metropolitan-district-council/wolverhampton","RICS SUBS UK CYBS",599,"Workforce Development","8699","TPP - Placement Foster Care Inhouse","27/04/2020"
"Wolverhampton City Council","http://opendatacommunities.org/id/metropolitan-district-council/wolverhampton","CardtronicsUK",50,"Ernest Bold Court","6011","Equipment - Purchase","27/04/2020"
"Wolverhampton City Council","http://opendatacommunities.org/id/metropolitan-district-council/wolverhampton","NATIONWIDE",500,"NRPF","6011","No Recourse to Public Funds","27/04/2020"
"Wolverhampton City Council","http://opendatacommunities.org/id/metropolitan-district-council/wolverhampton","NATIONWIDE",500,"NRPF","6011","No Recourse to Public Funds","27/04/2020"
"Wolverhampton City Council","http://opendatacommunities.org/id/metropolitan-district-council/wolverhampton","NATIONWIDE",500,"NRPF","6011","No Recourse to Public Funds","27/04/2020"
"Wolverhampton City Council","http://opendatacommunities.org/id/metropolitan-district-council/wolverhampton","SAINSBURYS 2040",37.5,"Duke Street Bungalows","5411","R4010","27/04/2020"
"Wolverhampton City Council","http://opendatacommunities.org/id/metropolitan-district-council/wolverhampton","AMZNMktplace",47.26,"Northicote Farm","5999","Equipment - Purchase","27/04/2020"
"Wolverhampton City Council","http://opendatacommunities.org/id/metropolitan-district-council/wolverhampton","FUNKYPIGEON.COM",4.05,"Regional Adoption Agency","5947","Equipment - Purchase","27/04/2020"
"Wolverhampton City Council","http://opendatacommunities.org/id/metropolitan-district-council/wolverhampton","PAYPAL  JAHANZEB9",83.97,"Private Hire Vehicles","8999","Equipment - Purchase","27/04/2020"
"Wolverhampton City Council","http://opendatacommunities.org/id/metropolitan-district-council/wolverhampton","ADOBE STOCK",19.99,"Communications & Marketing - General","5734","R4317","27/04/2020"
"Wolverhampton City Council","http://opendatacommunities.org/id/metropolitan-district-council/wolverhampton","SAINSBURYS (2340)",52,"Key to Inspiration","5411","-","27/04/2020"
"Wolverhampton City Council","http://opendatacommunities.org/id/metropolitan-district-council/wolverhampton","Just Eat",20.8,"Key to Inspiration","5814","Educ Trips, Holidays, Outings, Activity","27/04/2020"
"Wolverhampton City Council","http://opendatacommunities.org/id/metropolitan-district-council/wolverhampton","SCREWFIX DIRECT",10.1,"COVID 19 - Food Distribution Hub","5200","Protective Clothing","27/04/2020"
"Wolverhampton City Council","http://opendatacommunities.org/id/metropolitan-district-council/wolverhampton","SCREWFIX DIRECT",12.63,"COVID 19 - Food Distribution Hub","5200","Protective Clothing","27/04/2020"
"Wolverhampton City Council","http://opendatacommunities.org/id/metropolitan-district-council/wolverhampton","SCREWFIX DIRECT",30.3,"COVID 19 - Food Distribution Hub","5200","Protective Clothing","27/04/2020"
"Wolverhampton City Council","http://opendatacommunities.org/id/metropolitan-district-council/wolverhampton","ARGOS LTD",44.96,"LAC Transitions Team","5310","Client Allowances","27/04/2020"
"Wolverhampton City Council","http://opendatacommunities.org/id/metropolitan-district-council/wolverhampton","Amazon.co.uk ZG9A95LY5",15.28,"Citizenship, Language & Learning","5969","Books","27/04/2020"
"Wolverhampton City Council","http://opendatacommunities.org/id/metropolitan-district-council/wolverhampton","ASDA SUPERSTORE",96.05,"Key to Inspiration","5411","Provisions (Not for resale)","27/04/2020"
"Wolverhampton City Council","http://opendatacommunities.org/id/metropolitan-district-council/wolverhampton","SCREWFIX DIRECT",74.02,"Cemeteries","5200","Equipment - Purchase","24/04/2020"
"Wolverhampton City Council","http://opendatacommunities.org/id/metropolitan-district-council/wolverhampton","CardtronicsUK",40,"LAC Transitions Team","6011","Independant Living Allowance","24/04/2020"
"Wolverhampton City Council","http://opendatacommunities.org/id/metropolitan-district-council/wolverhampton","FREEPIK & FLATICON",5.28,"Communications & Marketing - General","7333","R4535","24/04/2020"
"Wolverhampton City Council","http://opendatacommunities.org/id/metropolitan-district-council/wolverhampton","AMZNMKTPLACE AMAZON.CO",112.41,"WV Active Marketing","5999","R4317","24/04/2020"
"Wolverhampton City Council","http://opendatacommunities.org/id/metropolitan-district-council/wolverhampton","WWW.AMPULLA.CO.UK",54.81,"COVID 19 - Food Distribution Hub","5085","Materials","24/04/2020"
"Wolverhampton City Council","http://opendatacommunities.org/id/metropolitan-district-council/wolverhampton","ASDA STORE 4753",27.47,"Bradley Resource Centre","5411","Provisions (Not for resale)","24/04/2020"
"Wolverhampton City Council","http://opendatacommunities.org/id/metropolitan-district-council/wolverhampton","Amazon.co.uk 9P0Q80IV5",12.06,"Bradley Resource Centre","5969","Equipment - Purchase","24/04/2020"
"Wolverhampton City Council","http://opendatacommunities.org/id/metropolitan-district-council/wolverhampton","MOONPIG",3.37,"Corporate Parenting","5399","Stationery","24/04/2020"
"Wolverhampton City Council","http://opendatacommunities.org/id/metropolitan-district-council/wolverhampton","thetrainline.com",-127.4,"LAC Transitions Team","4112","Provisions (Not for resale)","24/04/2020"
"Wolverhampton City Council","http://opendatacommunities.org/id/metropolitan-district-council/wolverhampton","CardtronicsUK",200,"LAC Transitions Team","6011","Client Allowances","24/04/2020"
"Wolverhampton City Council","http://opendatacommunities.org/id/metropolitan-district-council/wolverhampton","EB  5-PART WEBINAR SER",195,"Apprenticeships","7399","Training Expenses","24/04/2020"
"Wolverhampton City Council","http://opendatacommunities.org/id/metropolitan-district-council/wolverhampton","E C STRAITON RUGEL",46.92,"Northicote Farm","0742","Professional fees","24/04/2020"
"Wolverhampton City Council","http://opendatacommunities.org/id/metropolitan-district-council/wolverhampton","WWW.SHEARWELL.CO.UK",37.18,"Northicote Farm","5999","Equipment - Purchase","24/04/2020"
"Wolverhampton City Council","http://opendatacommunities.org/id/metropolitan-district-council/wolverhampton","PAYPAL  WICKESBUILD",64.37,"Northicote Farm","5099","Materials","24/04/2020"
"Wolverhampton City Council","http://opendatacommunities.org/id/metropolitan-district-council/wolverhampton","WWW.NOBISCO.CO.UK",20.2,"COVID 19 - Homeless Accommodation","5085","Equipment - Health and Safety","23/04/2020"
"Wolverhampton City Council","http://opendatacommunities.org/id/metropolitan-district-council/wolverhampton","EUROTOOL HIRE AND SALE",126,"Private Hire Vehicles","7394","-","23/04/2020"
"Wolverhampton City Council","http://opendatacommunities.org/id/metropolitan-district-council/wolverhampton","ARGOS LTD",232.95,"LAC Transitions Team","5310","Client Allowances","23/04/2020"
"Wolverhampton City Council","http://opendatacommunities.org/id/metropolitan-district-council/wolverhampton","CARRIER BAG SHOP",30.1,"COVID 19 - Food Distribution Hub","7399","Materials","23/04/2020"
"Wolverhampton City Council","http://opendatacommunities.org/id/metropolitan-district-council/wolverhampton","CT WOLVERHAMPTON",35,"LAC Transitions Team","8398","Provisions (Not for resale)","23/04/2020"
"Wolverhampton City Council","http://opendatacommunities.org/id/metropolitan-district-council/wolverhampton","CardtronicsUK",50,"LAC Transitions Team","6011","Provisions (Not for resale)","23/04/2020"
"Wolverhampton City Council","http://opendatacommunities.org/id/metropolitan-district-council/wolverhampton","CUMMINGS BROTHERS LOCK",20,"Caretakers Community Centre","7399","-","23/04/2020"
"Wolverhampton City Council","http://opendatacommunities.org/id/metropolitan-district-council/wolverhampton","WWW.CARDFACTORY.CO.UK",2.16,"LAC Transitions Team","5947","Financial Assistance In Exceptional Circ","23/04/2020"
"Wolverhampton City Council","http://opendatacommunities.org/id/metropolitan-district-council/wolverhampton","CardtronicsUK",200.99,"LAC Transitions Team","6011","Client Allowances","23/04/2020"
"Wolverhampton City Council","http://opendatacommunities.org/id/metropolitan-district-council/wolverhampton","SAINSBURYS 2040",19.83,"Ernest Bold Court","5411","Provisions (Not for resale)","23/04/2020"
"Wolverhampton City Council","http://opendatacommunities.org/id/metropolitan-district-council/wolverhampton","AMZNMKTPLACE AMAZON.CO",30.82,"Duke Street Bungalows","5999","Equipment - Purchase","23/04/2020"
"Wolverhampton City Council","http://opendatacommunities.org/id/metropolitan-district-council/wolverhampton","EE TOP UP VESTA",10,"School Crossing Patrol","4814","Comms - Mobile Telephones","23/04/2020"
"Wolverhampton City Council","http://opendatacommunities.org/id/metropolitan-district-council/wolverhampton","OAKLAND",931,"Destitute Plus","7011","Accommodation Costs","23/04/2020"
"Wolverhampton City Council","http://opendatacommunities.org/id/metropolitan-district-council/wolverhampton","OAKLAND",931,"Destitute Plus","7011","Accommodation Costs","23/04/2020"
"Wolverhampton City Council","http://opendatacommunities.org/id/metropolitan-district-council/wolverhampton","PAYPAL  HORNER SHEA",124,"Northicote Farm","5099","Equipment - Purchase","23/04/2020"
"Wolverhampton City Council","http://opendatacommunities.org/id/metropolitan-district-council/wolverhampton","7 VICTORIA SQUARESain",60,"LAC Transitions Team","6011","Independant Living Allowance","22/04/2020"
"Wolverhampton City Council","http://opendatacommunities.org/id/metropolitan-district-council/wolverhampton","FARMFOODS 603",31,"Bradley Resource Centre","5411","Cleaning Supplies and Materials","22/04/2020"
"Wolverhampton City Council","http://opendatacommunities.org/id/metropolitan-district-council/wolverhampton","DIXONS FAMILY BUTCHERS",190,"Bradley Resource Centre","5499","Provisions (Not for resale)","22/04/2020"
"Wolverhampton City Council","http://opendatacommunities.org/id/metropolitan-district-council/wolverhampton","FARMFOODS 603",244.23,"Bradley Resource Centre","5411","Provisions (Not for resale)","22/04/2020"
"Wolverhampton City Council","http://opendatacommunities.org/id/metropolitan-district-council/wolverhampton","AMZNMktplace",9.15,"Safeguarding Admin Resource","5999","Stationery","22/04/2020"
"Wolverhampton City Council","http://opendatacommunities.org/id/metropolitan-district-council/wolverhampton","Amazon.co.uk 3F0EC06L5",43.73,"Power2 Team","5969","Direct Work With Children","22/04/2020"
"Wolverhampton City Council","http://opendatacommunities.org/id/metropolitan-district-council/wolverhampton","DC PAYMENTS",16.67,"LAC Transitions Team","6011","Client Allowances","22/04/2020"
"Wolverhampton City Council","http://opendatacommunities.org/id/metropolitan-district-council/wolverhampton","LOYD 89 CHURCH STREET",50,"Ernest Bold Court","6011","Equipment - Purchase","22/04/2020"
"Wolverhampton City Council","http://opendatacommunities.org/id/metropolitan-district-council/wolverhampton","GEN REGISTER OFFICE",76,"Centralised External Legal Costs","9399","Services - Fees and Charges","22/04/2020"
"Wolverhampton City Council","http://opendatacommunities.org/id/metropolitan-district-council/wolverhampton","NATIONWIDE",200,"NRPF","6011","No Recourse to Public Funds","22/04/2020"
"Wolverhampton City Council","http://opendatacommunities.org/id/metropolitan-district-council/wolverhampton","SSE",111.05,"LAC Transitions Team","4900","Client Allowances","21/04/2020"
"Wolverhampton City Council","http://opendatacommunities.org/id/metropolitan-district-council/wolverhampton","POST OFFICE COUNTER",10.2,"Lac Transitions","9402","Services - Supplies & Services to users","21/04/2020"
"Wolverhampton City Council","http://opendatacommunities.org/id/metropolitan-district-council/wolverhampton","FACEBK C3D2HT6AR2",500,"Communications & Marketing - General","7311","R4317","21/04/2020"
"Wolverhampton City Council","http://opendatacommunities.org/id/metropolitan-district-council/wolverhampton","NETFLIX.COM",9.99,"Key to Inspiration","4899","Subscriptions","21/04/2020"
"Wolverhampton City Council","http://opendatacommunities.org/id/metropolitan-district-council/wolverhampton","TVLICENSING.CO.UK",157.5,"Bradley Resource Centre","7392","Services - General Licences","21/04/2020"
"Wolverhampton City Council","http://opendatacommunities.org/id/metropolitan-district-council/wolverhampton","WWW.VOUCHEREXPRESS.CO.",245.75,"Youth Offending Team","5947","Provisions (Not for resale)","21/04/2020"
"Wolverhampton City Council","http://opendatacommunities.org/id/metropolitan-district-council/wolverhampton","WWW.POSTOFFICESHOP.CO.",48.09,"Youth Offending Team","5111","Comms - Postage","21/04/2020"
"Wolverhampton City Council","http://opendatacommunities.org/id/metropolitan-district-council/wolverhampton","CURRYS ONLINE",124.99,"LAC Transitions Team","5732","Client Allowances","21/04/2020"
"Wolverhampton City Council","http://opendatacommunities.org/id/metropolitan-district-council/wolverhampton","EB  WEBINAR AEB ACHIEV",150,"AES Staff Development","7399","Training Expenses","21/04/2020"
"Wolverhampton City Council","http://opendatacommunities.org/id/metropolitan-district-council/wolverhampton","PAYPAL  SOFTWAREMOD",41.87,"ICT Services","4816","Computing - Purchase of Software","21/04/2020"
"Wolverhampton City Council","http://opendatacommunities.org/id/metropolitan-district-council/wolverhampton","ROYAL BK OF SCOTLAND",300,"LAC Transitions Team","6011","Client Allowances","21/04/2020"
"Wolverhampton City Council","http://opendatacommunities.org/id/metropolitan-district-council/wolverhampton","WIX.COM",42.57,"Technical Support","5968","Computing - Purchase of Software","21/04/2020"
"Wolverhampton City Council","http://opendatacommunities.org/id/metropolitan-district-council/wolverhampton","WIX.COM",46.57,"Technical Support","5968","Computing - Purchase of Software","21/04/2020"
"Wolverhampton City Council","http://opendatacommunities.org/id/metropolitan-district-council/wolverhampton","WIX.COM",42.57,"Technical Support","5968","Computing - Purchase of Software","21/04/2020"
"Wolverhampton City Council","http://opendatacommunities.org/id/metropolitan-district-council/wolverhampton","LOYD 37 CHURCH STREET",200,"Duke Street Bungalows","6011","Provisions (Not for resale)","21/04/2020"
"Wolverhampton City Council","http://opendatacommunities.org/id/metropolitan-district-council/wolverhampton","AMZNMKTPLACE AMAZON.CO",8.32,"Ernest Bold Court","5999","Equipment - Purchase","21/04/2020"
"Wolverhampton City Council","http://opendatacommunities.org/id/metropolitan-district-council/wolverhampton","RAGLAN STREET ST MARK",500,"NRPF","6011","No Recourse to Public Funds","21/04/2020"
"Wolverhampton City Council","http://opendatacommunities.org/id/metropolitan-district-council/wolverhampton","POST OFFICE COUNTER",267.5,"Fleet Management","9402","R3004","21/04/2020"
"Wolverhampton City Council","http://opendatacommunities.org/id/metropolitan-district-council/wolverhampton","AMZNMktplace",22.84,"Research & Development","5999","Books","20/04/2020"
"Wolverhampton City Council","http://opendatacommunities.org/id/metropolitan-district-council/wolverhampton","AMZNMktplace",5.82,"Power2 Team","5999","Direct Work With Children","20/04/2020"
"Wolverhampton City Council","http://opendatacommunities.org/id/metropolitan-district-council/wolverhampton","AMZNMktplace",59.07,"Power2 Team","5999","Direct Work With Children","20/04/2020"
"Wolverhampton City Council","http://opendatacommunities.org/id/metropolitan-district-council/wolverhampton","AMZNMKTPLACE AMAZON.CO",8.56,"Power2 Team","5999","Direct Work With Children","20/04/2020"
"Wolverhampton City Council","http://opendatacommunities.org/id/metropolitan-district-council/wolverhampton","AMZNMKTPLACE AMAZON.CO",37.47,"EIP Locality 8","5999","Equipment - Purchase","20/04/2020"
"Wolverhampton City Council","http://opendatacommunities.org/id/metropolitan-district-council/wolverhampton","Just Eat",12.64,"Key to Inspiration","5814","Subsistence","20/04/2020"
"Wolverhampton City Council","http://opendatacommunities.org/id/metropolitan-district-council/wolverhampton","WM MORRISONS STORE",80.1,"Bradley Resource Centre","5411","Provisions (Not for resale)","20/04/2020"
"Wolverhampton City Council","http://opendatacommunities.org/id/metropolitan-district-council/wolverhampton","SAINSBURYS (2340)",216.9,"Key to Inspiration","5411","Provisions (Not for resale)","20/04/2020"
"Wolverhampton City Council","http://opendatacommunities.org/id/metropolitan-district-council/wolverhampton","LOYD 37 CHURCH STREET",60,"LAC Transitions Team","6011","Client Allowances","20/04/2020"
"Wolverhampton City Council","http://opendatacommunities.org/id/metropolitan-district-council/wolverhampton","HOME & MOTORSAVE (PERT",7.32,"Independant Living Services","5039","Cleaning Supplies and Materials","20/04/2020"
"Wolverhampton City Council","http://opendatacommunities.org/id/metropolitan-district-council/wolverhampton","GIFTFINDER LTD",6187.5,"Independant Living Services","5969","Equipment - Health and Safety","20/04/2020"
"Wolverhampton City Council","http://opendatacommunities.org/id/metropolitan-district-council/wolverhampton","AMZNMktplace",29.92,"Vulnerable Young Persons Team","5999","Equipment - Health and Safety","20/04/2020"
"Wolverhampton City Council","http://opendatacommunities.org/id/metropolitan-district-council/wolverhampton","Wix.com",-3,"Technical Support","5817","Computing - Purchase of Software","20/04/2020"
"Wolverhampton City Council","http://opendatacommunities.org/id/metropolitan-district-council/wolverhampton","Wix.com",-3,"Technical Support","5817","Computing - Purchase of Software","20/04/2020"
"Wolverhampton City Council","http://opendatacommunities.org/id/metropolitan-district-council/wolverhampton","WIX.COM",186.26,"Technical Support","5968","Computing - Purchase of Software","20/04/2020"
"Wolverhampton City Council","http://opendatacommunities.org/id/metropolitan-district-council/wolverhampton","ARGOS LTD",22.45,"EIP Locality 3","5310","Grant Payments","20/04/2020"
"Wolverhampton City Council","http://opendatacommunities.org/id/metropolitan-district-council/wolverhampton","SAINSBURYS 2040",10.5,"Ernest Bold Court","5411","Provisions (Not for resale)","20/04/2020"
"Wolverhampton City Council","http://opendatacommunities.org/id/metropolitan-district-council/wolverhampton","CO-OP GROUP FOOD",3.22,"Ernest Bold Court","5411","Provisions (Not for resale)","20/04/2020"
"Wolverhampton City Council","http://opendatacommunities.org/id/metropolitan-district-council/wolverhampton","AMZNMKTPLACE AMAZON.CO",6.65,"Ernest Bold Court","5999","Equipment - Purchase","20/04/2020"
"Wolverhampton City Council","http://opendatacommunities.org/id/metropolitan-district-council/wolverhampton","ROOKERY Sainsburys Ba",200,"Duke Street Bungalows","6011","Provisions (Not for resale)","20/04/2020"
"Wolverhampton City Council","http://opendatacommunities.org/id/metropolitan-district-council/wolverhampton","ROOKERY Sainsburys Ba",200,"Duke Street Bungalows","6011","Provisions (Not for resale)","20/04/2020"
"Wolverhampton City Council","http://opendatacommunities.org/id/metropolitan-district-council/wolverhampton","DVLA VEHICLE TAX",267.5,"Fleet Management","9311","R3004","17/04/2020"
"Wolverhampton City Council","http://opendatacommunities.org/id/metropolitan-district-council/wolverhampton","DVLA VEHICLE TAX",267.5,"Fleet Management","9311","R3004","17/04/2020"
"Wolverhampton City Council","http://opendatacommunities.org/id/metropolitan-district-council/wolverhampton","DVLA VEHICLE TAX",267.5,"Fleet Management","9311","R3004","17/04/2020"
"Wolverhampton City Council","http://opendatacommunities.org/id/metropolitan-district-council/wolverhampton","DVLA VEHICLE TAX",267.5,"Fleet Management","9311","R3004","17/04/2020"
"Wolverhampton City Council","http://opendatacommunities.org/id/metropolitan-district-council/wolverhampton","DVLA VEHICLE TAX",267.5,"Fleet Management","9311","R3004","17/04/2020"
"Wolverhampton City Council","http://opendatacommunities.org/id/metropolitan-district-council/wolverhampton","DVLA VEHICLE TAX",267.5,"Fleet Management","9311","R3004","17/04/2020"
"Wolverhampton City Council","http://opendatacommunities.org/id/metropolitan-district-council/wolverhampton","DVLA VEHICLE TAX",202.5,"Fleet Management","9311","R3004","17/04/2020"
"Wolverhampton City Council","http://opendatacommunities.org/id/metropolitan-district-council/wolverhampton","DVLA VEHICLE TAX",267.5,"Fleet Management","9311","R3004","17/04/2020"
"Wolverhampton City Council","http://opendatacommunities.org/id/metropolitan-district-council/wolverhampton","DVLA VEHICLE TAX",267.5,"Fleet Management","9311","R3004","17/04/2020"
"Wolverhampton City Council","http://opendatacommunities.org/id/metropolitan-district-council/wolverhampton","DVLA VEHICLE TAX",167.5,"Fleet Management","9311","R3004","17/04/2020"
"Wolverhampton City Council","http://opendatacommunities.org/id/metropolitan-district-council/wolverhampton","DVLA VEHICLE TAX",267.5,"Fleet Management","9311","R3004","17/04/2020"
"Wolverhampton City Council","http://opendatacommunities.org/id/metropolitan-district-council/wolverhampton","DVLA VEHICLE TAX",267.5,"Fleet Management","9311","R3004","17/04/2020"
"Wolverhampton City Council","http://opendatacommunities.org/id/metropolitan-district-council/wolverhampton","DVLA VEHICLE TAX",267.5,"Fleet Management","9311","R3004","17/04/2020"
"Wolverhampton City Council","http://opendatacommunities.org/id/metropolitan-district-council/wolverhampton","DVLA VEHICLE TAX",267.5,"Fleet Management","9311","R3004","17/04/2020"
"Wolverhampton City Council","http://opendatacommunities.org/id/metropolitan-district-council/wolverhampton","DVLA VEHICLE TAX",267.5,"Fleet Management","9311","R3004","17/04/2020"
"Wolverhampton City Council","http://opendatacommunities.org/id/metropolitan-district-council/wolverhampton","TFM FARM   COUNTRY",129.34,"Northicote Farm","0763","Equipment - Purchase","17/04/2020"
"Wolverhampton City Council","http://opendatacommunities.org/id/metropolitan-district-council/wolverhampton","UKN01408",40,"LAC Transitions Team","6011","Independant Living Allowance","17/04/2020"
"Wolverhampton City Council","http://opendatacommunities.org/id/metropolitan-district-council/wolverhampton","PAYPAL  BAICHUANGUA EB",-34.68,"MI Friendly Cities","5137","Equipment - Health and Safety","17/04/2020"
"Wolverhampton City Council","http://opendatacommunities.org/id/metropolitan-district-council/wolverhampton","AMZNMKTPLACE AMAZON.CO",29.83,"EIP Locality 8","5999","Equipment - Purchase","17/04/2020"
"Wolverhampton City Council","http://opendatacommunities.org/id/metropolitan-district-council/wolverhampton","NATIONWIDE",60,"LAC Transitions Team","6011","Client Allowances","17/04/2020"
"Wolverhampton City Council","http://opendatacommunities.org/id/metropolitan-district-council/wolverhampton","WWW.CATAC.CO.UK",50.59,"COVID 19 - Food Distribution Hub","5995","Clothing / Uniforms","17/04/2020"
"Wolverhampton City Council","http://opendatacommunities.org/id/metropolitan-district-council/wolverhampton","AMZNMKTPLACE AMAZON.CO",49.98,"COVID 19 - Food Distribution Hub","5999","Equipment - Purchase","17/04/2020"
"Wolverhampton City Council","http://opendatacommunities.org/id/metropolitan-district-council/wolverhampton","WM MORRISONS STORE",1.95,"Bradley Resource Centre","5411","Provisions (Not for resale)","17/04/2020"
"Wolverhampton City Council","http://opendatacommunities.org/id/metropolitan-district-council/wolverhampton","VODAFONE LTD",34.17,"COVID 19 - Children�s Social Care","4814","Section 17","17/04/2020"
"Wolverhampton City Council","http://opendatacommunities.org/id/metropolitan-district-council/wolverhampton","NoteMachine ATM",50,"Ernest Bold Court","6011","Equipment - R & M","17/04/2020"
"Wolverhampton City Council","http://opendatacommunities.org/id/metropolitan-district-council/wolverhampton","TVLICENSING.CO.UK",157.5,"LAC Transitions Team","7392","Client Allowances","17/04/2020"
"Wolverhampton City Council","http://opendatacommunities.org/id/metropolitan-district-council/wolverhampton","LOYD 37 CHURCH STREET",60,"LAC Transitions Team","6011","Client Allowances","17/04/2020"
"Wolverhampton City Council","http://opendatacommunities.org/id/metropolitan-district-council/wolverhampton","NoteMachine ATM",100,"LAC Transitions Team","6011","Client Allowances","17/04/2020"
"Wolverhampton City Council","http://opendatacommunities.org/id/metropolitan-district-council/wolverhampton","SQUARESPACE INC.",-132.68,"Learning Technologies","7372","Computing - Purchase of Software","17/04/2020"
"Wolverhampton City Council","http://opendatacommunities.org/id/metropolitan-district-council/wolverhampton","SAINSBURYS 2040",10.54,"Ernest Bold Court","5411","Provisions (Not for resale)","17/04/2020"
"Wolverhampton City Council","http://opendatacommunities.org/id/metropolitan-district-council/wolverhampton","NoteMachine ATM",16.67,"LAC Transitions Team","6011","Client Allowances","17/04/2020"
"Wolverhampton City Council","http://opendatacommunities.org/id/metropolitan-district-council/wolverhampton","EE TOP UP VESTA",10,"School Crossing Patrol","4814","Comms - Mobile Telephones","17/04/2020"
"Wolverhampton City Council","http://opendatacommunities.org/id/metropolitan-district-council/wolverhampton","DVLA VEHICLE TAX",267.5,"Fleet Management","9311","R3004","17/04/2020"
"Wolverhampton City Council","http://opendatacommunities.org/id/metropolitan-district-council/wolverhampton","DVLA VEHICLE TAX",202.5,"Fleet Management","9311","R3004","17/04/2020"
"Wolverhampton City Council","http://opendatacommunities.org/id/metropolitan-district-council/wolverhampton","DVLA VEHICLE TAX",267.5,"Fleet Management","9311","R3004","17/04/2020"
"Wolverhampton City Council","http://opendatacommunities.org/id/metropolitan-district-council/wolverhampton","DVLA VEHICLE TAX",267.5,"Fleet Management","9311","R3004","17/04/2020"
"Wolverhampton City Council","http://opendatacommunities.org/id/metropolitan-district-council/wolverhampton","DVLA VEHICLE TAX",267.5,"Fleet Management","9311","R3004","17/04/2020"
"Wolverhampton City Council","http://opendatacommunities.org/id/metropolitan-district-council/wolverhampton","DVLA VEHICLE TAX",267.5,"Fleet Management","9311","R3004","17/04/2020"
"Wolverhampton City Council","http://opendatacommunities.org/id/metropolitan-district-council/wolverhampton","DVLA VEHICLE TAX",267.5,"Fleet Management","9311","R3004","17/04/2020"
"Wolverhampton City Council","http://opendatacommunities.org/id/metropolitan-district-council/wolverhampton","DVLA VEHICLE TAX",267.5,"Fleet Management","9311","R3004","17/04/2020"
"Wolverhampton City Council","http://opendatacommunities.org/id/metropolitan-district-council/wolverhampton","DVLA VEHICLE TAX",167.5,"Fleet Management","9311","R3004","17/04/2020"
"Wolverhampton City Council","http://opendatacommunities.org/id/metropolitan-district-council/wolverhampton","PAYPAL  BAICHUANGUA EB",-19.1,"MI Friendly Cities","5137","Equipment - Health and Safety","16/04/2020"
"Wolverhampton City Council","http://opendatacommunities.org/id/metropolitan-district-council/wolverhampton","AMZNMktplace",11.2,"Power2 Team","5999","Direct Work With Children","16/04/2020"
"Wolverhampton City Council","http://opendatacommunities.org/id/metropolitan-district-council/wolverhampton","AMZNMktplace",44.97,"Power2 Team","5999","Direct Work With Children","16/04/2020"
"Wolverhampton City Council","http://opendatacommunities.org/id/metropolitan-district-council/wolverhampton","AMZNMKTPLACE AMAZON.CO",40.45,"Power2 Team","5999","Direct Work With Children","16/04/2020"
"Wolverhampton City Council","http://opendatacommunities.org/id/metropolitan-district-council/wolverhampton","AMZNMKTPLACE AMAZON.CO",13.21,"Power2 Team","5999","Direct Work With Children","16/04/2020"
"Wolverhampton City Council","http://opendatacommunities.org/id/metropolitan-district-council/wolverhampton","AMZNMktplace",8.75,"EIP Locality 8","5999","Equipment - Purchase","16/04/2020"
"Wolverhampton City Council","http://opendatacommunities.org/id/metropolitan-district-council/wolverhampton","ASDA STORE",81.1,"Bradley Resource Centre","5411","Provisions (Not for resale)","16/04/2020"
"Wolverhampton City Council","http://opendatacommunities.org/id/metropolitan-district-council/wolverhampton","CardtronicsUK",60,"LAC Transitions Accommodation","6011","Independant Living Allowance","16/04/2020"
"Wolverhampton City Council","http://opendatacommunities.org/id/metropolitan-district-council/wolverhampton","WP-CENTRAL TAXIS L",83.04,"Lac Transitions","4121","Public Transport","16/04/2020"
"Wolverhampton City Council","http://opendatacommunities.org/id/metropolitan-district-council/wolverhampton","POST OFFICE COUNTER",112.75,"LAC Transitions Team","9402","Client Allowances","16/04/2020"
"Wolverhampton City Council","http://opendatacommunities.org/id/metropolitan-district-council/wolverhampton","SurveyMonkey",-320,"Learning Technologies","7372","Computing - Purchase of Software","16/04/2020"
"Wolverhampton City Council","http://opendatacommunities.org/id/metropolitan-district-council/wolverhampton","BRASSINGTON & CO",15,"Northicote Farm","7299","Refuse Collection","16/04/2020"
"Wolverhampton City Council","http://opendatacommunities.org/id/metropolitan-district-council/wolverhampton","PAYPAL  ARGOSDIRECT",49.99,"Northicote Farm","5331","Equipment - Purchase","16/04/2020"
"Wolverhampton City Council","http://opendatacommunities.org/id/metropolitan-district-council/wolverhampton","APPLE.COM/UK",445,"Strategic ICTS (ICT Serv Budget)","5732","Computing - Consumables","15/04/2020"
"Wolverhampton City Council","http://opendatacommunities.org/id/metropolitan-district-council/wolverhampton","AMZNMKTPLACE AMAZON.CO",40.45,"Power2 Team","5999","Direct Work With Children","15/04/2020"
"Wolverhampton City Council","http://opendatacommunities.org/id/metropolitan-district-council/wolverhampton","AMZNMKTPLACE AMAZON.CO",15.74,"Power2 Team","5999","Direct Work With Children","15/04/2020"
"Wolverhampton City Council","http://opendatacommunities.org/id/metropolitan-district-council/wolverhampton","AMZNMktplace",13.32,"EIP Locality 8","5999","Equipment - Purchase","15/04/2020"
"Wolverhampton City Council","http://opendatacommunities.org/id/metropolitan-district-council/wolverhampton","AMZNMktplace",11.65,"EIP Locality 8","5999","Equipment - Purchase","15/04/2020"
"Wolverhampton City Council","http://opendatacommunities.org/id/metropolitan-district-council/wolverhampton","CITY OF WOLVERHAMPTON",33,"Court of Protection, Funerals Prot Prop","9399","R4408","15/04/2020"
"Wolverhampton City Council","http://opendatacommunities.org/id/metropolitan-district-council/wolverhampton","ARGOS LTD",103.94,"Bradley Resource Centre","5310","Equipment - Purchase","15/04/2020"
"Wolverhampton City Council","http://opendatacommunities.org/id/metropolitan-district-council/wolverhampton","POST OFFICE COUNTER",27.36,"Bradley Resource Centre","9402","Stationery","15/04/2020"
"Wolverhampton City Council","http://opendatacommunities.org/id/metropolitan-district-council/wolverhampton","ARGOS.IE",191.12,"Fostering Team & Allowances","5310","Computing - Purchase of Hardware","15/04/2020"
"Wolverhampton City Council","http://opendatacommunities.org/id/metropolitan-district-council/wolverhampton","APPLE.COM/BILL",2.07,"Corporate Parenting","5735","Computing - Purchase of Software","15/04/2020"
"Wolverhampton City Council","http://opendatacommunities.org/id/metropolitan-district-council/wolverhampton","CardtronicsUK",60,"LAC Transitions Team","6011","Provisions (Not for resale)","15/04/2020"
"Wolverhampton City Council","http://opendatacommunities.org/id/metropolitan-district-council/wolverhampton","ASDA GROCERIES ONLINE",5,"Upper Pendeford Farm Childrens Home","5411","Provisions (Not for resale)","15/04/2020"
"Wolverhampton City Council","http://opendatacommunities.org/id/metropolitan-district-council/wolverhampton","ARGOS LTD",63.94,"LAC Transitions Team","5310","-","15/04/2020"
"Wolverhampton City Council","http://opendatacommunities.org/id/metropolitan-district-council/wolverhampton","BOOTS - 6564",7.49,"Community Enablement","5912","Materials","15/04/2020"
"Wolverhampton City Council","http://opendatacommunities.org/id/metropolitan-district-council/wolverhampton","CURRYS ONLINE",94.15,"LAC Transitions Team","5732","Client Allowances","15/04/2020"
"Wolverhampton City Council","http://opendatacommunities.org/id/metropolitan-district-council/wolverhampton","000002200500000",50,"LAC Transitions Team","6011","Client Allowances","15/04/2020"
"Wolverhampton City Council","http://opendatacommunities.org/id/metropolitan-district-council/wolverhampton","000002200500000",50,"LAC Transitions Team","6011","Client Allowances","15/04/2020"
"Wolverhampton City Council","http://opendatacommunities.org/id/metropolitan-district-council/wolverhampton","AMZNMktplace",91.62,"Strategic ICTS (ICT Serv Budget)","5999","Computing - Consumables","14/04/2020"
"Wolverhampton City Council","http://opendatacommunities.org/id/metropolitan-district-council/wolverhampton","AMZNMktplace",22.47,"Power2 Team","5999","Direct Work With Children","14/04/2020"
"Wolverhampton City Council","http://opendatacommunities.org/id/metropolitan-district-council/wolverhampton","ASDA STORE",62.13,"Bradley Resource Centre","5411","Provisions (Not for resale)","14/04/2020"
"Wolverhampton City Council","http://opendatacommunities.org/id/metropolitan-district-council/wolverhampton","TFM FARM   COUNTRY",43.94,"Northicote Farm","0763","Provisions (Not for resale)","14/04/2020"
"Wolverhampton City Council","http://opendatacommunities.org/id/metropolitan-district-council/wolverhampton","TFM FARM   COUNTRY",43.9,"Northicote Farm","0763","Provisions (Not for resale)","14/04/2020"
"Wolverhampton City Council","http://opendatacommunities.org/id/metropolitan-district-council/wolverhampton","EAT FRESH",45,"Power2 Team","5411","Subsistence","13/04/2020"
"Wolverhampton City Council","http://opendatacommunities.org/id/metropolitan-district-council/wolverhampton","GOOGLE  ADS9680351324",500,"Communications & Marketing - General","5968","R4317","13/04/2020"
"Wolverhampton City Council","http://opendatacommunities.org/id/metropolitan-district-council/wolverhampton","Amazon Prime NX07F6D65",6.66,"Key to Inspiration","5968","Equipment - Health and Safety","13/04/2020"
"Wolverhampton City Council","http://opendatacommunities.org/id/metropolitan-district-council/wolverhampton","Just Eat",22.28,"Key to Inspiration","5814","Subsistence","13/04/2020"
"Wolverhampton City Council","http://opendatacommunities.org/id/metropolitan-district-council/wolverhampton","F A GILL LTD",37.95,"Bradley Resource Centre","5499","Provisions (Not for resale)","13/04/2020"
"Wolverhampton City Council","http://opendatacommunities.org/id/metropolitan-district-council/wolverhampton","Trainline",-41,"School Improvement","4112","Public Transport","13/04/2020"
"Wolverhampton City Council","http://opendatacommunities.org/id/metropolitan-district-council/wolverhampton","ASDA STORES",18.7,"Key to Inspiration","5411","Provisions (Not for resale)","13/04/2020"
"Wolverhampton City Council","http://opendatacommunities.org/id/metropolitan-district-council/wolverhampton","SAINSBURYS (2340)",193,"Key to Inspiration","5411","Provisions (Not for resale)","13/04/2020"
"Wolverhampton City Council","http://opendatacommunities.org/id/metropolitan-district-council/wolverhampton","CO-OPERATIVE FOOD",4,"Aldersley Leisure Village","5411","Equipment - Purchase","13/04/2020"
"Wolverhampton City Council","http://opendatacommunities.org/id/metropolitan-district-council/wolverhampton","CO-OPERATIVE FOOD",4,"Aldersley Leisure Village","5411","Equipment - Purchase","13/04/2020"
"Wolverhampton City Council","http://opendatacommunities.org/id/metropolitan-district-council/wolverhampton","RESPONSTER PLUS PLAN",15.72,"City Direct","5734","Computing - Purchase of Hardware","13/04/2020"
"Wolverhampton City Council","http://opendatacommunities.org/id/metropolitan-district-council/wolverhampton","SurveyMonkey",320,"Learning Technologies","7372","Computing - Purchase of Software","13/04/2020"
"Wolverhampton City Council","http://opendatacommunities.org/id/metropolitan-district-council/wolverhampton","ASDA SUPERSTORE",68.3,"Meals on Wheels","5411","Provisions (Resale)","13/04/2020"
"Wolverhampton City Council","http://opendatacommunities.org/id/metropolitan-district-council/wolverhampton","AA MEMBERSHIP",154.93,"Fleet Management","8675","Professional fees","13/04/2020"
"Wolverhampton City Council","http://opendatacommunities.org/id/metropolitan-district-council/wolverhampton","ROYAL BK OF SCOTLAND",200,"Duke Street Bungalows","6011","Provisions (Not for resale)","13/04/2020"
"Wolverhampton City Council","http://opendatacommunities.org/id/metropolitan-district-council/wolverhampton","000002200500000",30,"LAC Transitions Team","6011","Independant Living Allowance","10/04/2020"
"Wolverhampton City Council","http://opendatacommunities.org/id/metropolitan-district-council/wolverhampton","TESCO STORES 6727",44.55,"Passenger Transport - General","5411","-","10/04/2020"
"Wolverhampton City Council","http://opendatacommunities.org/id/metropolitan-district-council/wolverhampton","EAT FRESH",35,"Power2 Team","5411","Subsistence","10/04/2020"
"Wolverhampton City Council","http://opendatacommunities.org/id/metropolitan-district-council/wolverhampton","CREEDFOODSERVICE.",946.25,"COVID 19 - Food Distribution Hub","5811","Provisions (Not for resale)","10/04/2020"
"Wolverhampton City Council","http://opendatacommunities.org/id/metropolitan-district-council/wolverhampton","ALDI STORES LTD",737.5,"COVID 19 - Food Distribution Hub","5411","Provisions (Not for resale)","10/04/2020"
"Wolverhampton City Council","http://opendatacommunities.org/id/metropolitan-district-council/wolverhampton","ASDA STORE 4753",19.55,"Bradley Resource Centre","5411","Provisions (Not for resale)","10/04/2020"
"Wolverhampton City Council","http://opendatacommunities.org/id/metropolitan-district-council/wolverhampton","WWW.VOUCHEREXPRESS.CO.",245.75,"Youth Offending Team","5947","Provisions (Not for resale)","10/04/2020"
"Wolverhampton City Council","http://opendatacommunities.org/id/metropolitan-district-council/wolverhampton","CUMMINGS BROTHERS LOCK",9.83,"Management of Vacant Properties","7399","Materials","10/04/2020"
"Wolverhampton City Council","http://opendatacommunities.org/id/metropolitan-district-council/wolverhampton","Amazon.co.uk S22XE5HY5",40.5,"COVID 19 Children�s Social Care","5969","Stationery","10/04/2020"
"Wolverhampton City Council","http://opendatacommunities.org/id/metropolitan-district-council/wolverhampton","AMZNMktplace",2.48,"COVID 19 Children�s Social Care","5999","Stationery","10/04/2020"
"Wolverhampton City Council","http://opendatacommunities.org/id/metropolitan-district-council/wolverhampton","123 REG LTD",9.99,"Technical Support","5968","Computing - Purchase of Software","10/04/2020"
"Wolverhampton City Council","http://opendatacommunities.org/id/metropolitan-district-council/wolverhampton","SQUARESPACE INC.",133.24,"Learning Technologies","7372","Computing - Purchase of Software","10/04/2020"
"Wolverhampton City Council","http://opendatacommunities.org/id/metropolitan-district-council/wolverhampton","WM MORRISONS STORE",10.97,"Ernest Bold Court","5411","Provisions (Not for resale)","10/04/2020"
"Wolverhampton City Council","http://opendatacommunities.org/id/metropolitan-district-council/wolverhampton","WWW.CIPFA.ORG.UK",220,"Workforce Development","8699","Training Expenses","10/04/2020"
"Wolverhampton City Council","http://opendatacommunities.org/id/metropolitan-district-council/wolverhampton","AMZNMKTPLACE AMAZON.CO",22.12,"Ernest Bold Court","5999","Equipment - Purchase","10/04/2020"
"Wolverhampton City Council","http://opendatacommunities.org/id/metropolitan-district-council/wolverhampton","EAT FRESH",35,"Power2 Team","5411","Subsistence","09/04/2020"
"Wolverhampton City Council","http://opendatacommunities.org/id/metropolitan-district-council/wolverhampton","EAT FRESH",35,"Power2 Team","5411","Subsistence","09/04/2020"
"Wolverhampton City Council","http://opendatacommunities.org/id/metropolitan-district-council/wolverhampton","EAT FRESH",35,"Power2 Team","5411","Subsistence","09/04/2020"
"Wolverhampton City Council","http://opendatacommunities.org/id/metropolitan-district-council/wolverhampton","AMZNMktplace",14.16,"Power2 Team","5999","Direct Work With Children","09/04/2020"
"Wolverhampton City Council","http://opendatacommunities.org/id/metropolitan-district-council/wolverhampton","AMZNMktplace",35.33,"EIP Locality 8","5999","Grant Payments","09/04/2020"
"Wolverhampton City Council","http://opendatacommunities.org/id/metropolitan-district-council/wolverhampton","CUMMINGS BROTHERS LOCK",54.17,"LAC Transitions Team","7399","Client Allowances","09/04/2020"
"Wolverhampton City Council","http://opendatacommunities.org/id/metropolitan-district-council/wolverhampton","AMZNMktplace",42.6,"Hospital Team","5999","Stationery","09/04/2020"
"Wolverhampton City Council","http://opendatacommunities.org/id/metropolitan-district-council/wolverhampton","AMZNMktplace",29.16,"Key to Inspiration","5999","Equipment - Purchase","09/04/2020"
"Wolverhampton City Council","http://opendatacommunities.org/id/metropolitan-district-council/wolverhampton","APPLE.COM/BILL",0.79,"Managing Director","5735","-","09/04/2020"
"Wolverhampton City Council","http://opendatacommunities.org/id/metropolitan-district-council/wolverhampton","WM MORRISONS STORE",9.55,"Ernest Bold Court","5411","Provisions (Not for resale)","09/04/2020"
"Wolverhampton City Council","http://opendatacommunities.org/id/metropolitan-district-council/wolverhampton","AMZNMKTPLACE AMAZON.CO",57.91,"Parks - Ranger Service","5999","Equipment - Purchase","09/04/2020"
"Wolverhampton City Council","http://opendatacommunities.org/id/metropolitan-district-council/wolverhampton","E C STRAITON",70.08,"Northicote Farm","0742","Professional fees","09/04/2020"
"Wolverhampton City Council","http://opendatacommunities.org/id/metropolitan-district-council/wolverhampton","000002200500000",60,"LAC Transitions Team","6011","Independant Living Allowance","08/04/2020"
"Wolverhampton City Council","http://opendatacommunities.org/id/metropolitan-district-council/wolverhampton","Microsoft Store",59.99,"COVID 19 - Homeless Accommodation","5816","Subscriptions","08/04/2020"
"Wolverhampton City Council","http://opendatacommunities.org/id/metropolitan-district-council/wolverhampton","ROOKERY Sainsburys Ba",60,"LAC Transitions Team","6011","Independant Living Allowance","08/04/2020"
"Wolverhampton City Council","http://opendatacommunities.org/id/metropolitan-district-council/wolverhampton","AMZNMktplace",56.81,"Power2 Team","5999","Direct Work With Children","08/04/2020"
"Wolverhampton City Council","http://opendatacommunities.org/id/metropolitan-district-council/wolverhampton","AMZNMktplace",22.6,"Power2 Team","5999","Direct Work With Children","08/04/2020"
"Wolverhampton City Council","http://opendatacommunities.org/id/metropolitan-district-council/wolverhampton","AMZNMktplace",37.47,"Power2 Team","5999","Direct Work With Children","08/04/2020"
"Wolverhampton City Council","http://opendatacommunities.org/id/metropolitan-district-council/wolverhampton","AMZNMKTPLACE AMAZON.CO",6.66,"Power2 Team","5999","Direct Work With Children","08/04/2020"
"Wolverhampton City Council","http://opendatacommunities.org/id/metropolitan-district-council/wolverhampton","AMZNMKTPLACE AMAZON.CO",9.99,"Power2 Team","5999","Direct Work With Children","08/04/2020"
"Wolverhampton City Council","http://opendatacommunities.org/id/metropolitan-district-council/wolverhampton","AMZNMKTPLACE AMAZON.CO",12.49,"Power2 Team","5999","Direct Work With Children","08/04/2020"
"Wolverhampton City Council","http://opendatacommunities.org/id/metropolitan-district-council/wolverhampton","AMZNMKTPLACE AMAZON.CO",4.91,"Power2 Team","5999","Direct Work With Children","08/04/2020"
"Wolverhampton City Council","http://opendatacommunities.org/id/metropolitan-district-council/wolverhampton","AMZNMKTPLACE AMAZON.CO",22.47,"Power2 Team","5999","Direct Work With Children","08/04/2020"
"Wolverhampton City Council","http://opendatacommunities.org/id/metropolitan-district-council/wolverhampton","AMZNMKTPLACE AMAZON.CO",14.99,"Power2 Team","5999","Direct Work With Children","08/04/2020"
"Wolverhampton City Council","http://opendatacommunities.org/id/metropolitan-district-council/wolverhampton","AMZNMktplace",24.98,"Power2 Team","5999","Direct Work With Children","08/04/2020"
"Wolverhampton City Council","http://opendatacommunities.org/id/metropolitan-district-council/wolverhampton","AMZNMktplace",49.97,"Power2 Team","5999","Direct Work With Children","08/04/2020"
"Wolverhampton City Council","http://opendatacommunities.org/id/metropolitan-district-council/wolverhampton","AMZNMktplace",44.97,"Power2 Team","5999","Direct Work With Children","08/04/2020"
"Wolverhampton City Council","http://opendatacommunities.org/id/metropolitan-district-council/wolverhampton","AMZNMKTPLACE AMAZON.CO",67.57,"Key to Inspiration","5999","Educ Trips, Holidays, Outings, Activity","08/04/2020"
"Wolverhampton City Council","http://opendatacommunities.org/id/metropolitan-district-council/wolverhampton","FARMFOODS 603",113.67,"Bradley Resource Centre","5411","Provisions (Not for resale)","08/04/2020"
"Wolverhampton City Council","http://opendatacommunities.org/id/metropolitan-district-council/wolverhampton","000002200500000",80,"LAC Transitions Team","6011","Client Allowances","08/04/2020"
"Wolverhampton City Council","http://opendatacommunities.org/id/metropolitan-district-council/wolverhampton","CARESHOP",150.56,"Ernest Bold Court","5999","Materials","08/04/2020"
"Wolverhampton City Council","http://opendatacommunities.org/id/metropolitan-district-council/wolverhampton","ASDA SUPERSTORE",149,"LAC Transitions Team","5411","Client Allowances","08/04/2020"
"Wolverhampton City Council","http://opendatacommunities.org/id/metropolitan-district-council/wolverhampton","ASDA SUPERSTORE",165,"LAC Transitions Team","5411","Client Allowances","08/04/2020"
"Wolverhampton City Council","http://opendatacommunities.org/id/metropolitan-district-council/wolverhampton","CardtronicsUK",60,"LAC Transitions Team","6011","Provisions (Not for resale)","08/04/2020"
"Wolverhampton City Council","http://opendatacommunities.org/id/metropolitan-district-council/wolverhampton","Amazon.co.uk 1S7LY6Z55",10.72,"Power2 Team","5969","Books","08/04/2020"
"Wolverhampton City Council","http://opendatacommunities.org/id/metropolitan-district-council/wolverhampton","Amazon.co.uk YN6A28U95",37.48,"Power2 Team","5969","Direct Work With Children","08/04/2020"
"Wolverhampton City Council","http://opendatacommunities.org/id/metropolitan-district-council/wolverhampton","Amazon.co.uk 643VY2835",18.7,"Power2 Team","5969","Direct Work With Children","08/04/2020"
"Wolverhampton City Council","http://opendatacommunities.org/id/metropolitan-district-council/wolverhampton","WP-CENTRAL TAXIS L",74.9,"CIN/CP Social Work Unit - Area 8","4121","Client Transport","08/04/2020"
"Wolverhampton City Council","http://opendatacommunities.org/id/metropolitan-district-council/wolverhampton","E C STRAITON",135.47,"Northicote Farm","0742","Professional fees","08/04/2020"
"Wolverhampton City Council","http://opendatacommunities.org/id/metropolitan-district-council/wolverhampton","SAINSBURYS (2340)",14.7,"LAC Transitions Team","5411","Provisions (Not for resale)","07/04/2020"
"Wolverhampton City Council","http://opendatacommunities.org/id/metropolitan-district-council/wolverhampton","AMZNMKTPLACE AMAZON.CO",4.16,"Power2 Team","5999","Direct Work With Children","07/04/2020"
"Wolverhampton City Council","http://opendatacommunities.org/id/metropolitan-district-council/wolverhampton","AMZNMKTPLACE AMAZON.CO",15.82,"Power2 Team","5999","Direct Work With Children","07/04/2020"
"Wolverhampton City Council","http://opendatacommunities.org/id/metropolitan-district-council/wolverhampton","AMZNMktplace",5.72,"Power2 Team","5999","Direct Work With Children","07/04/2020"
"Wolverhampton City Council","http://opendatacommunities.org/id/metropolitan-district-council/wolverhampton","AMZNMKTPLACE AMAZON.CO",12.03,"Power2 Team","5999","Direct Work With Children","07/04/2020"
"Wolverhampton City Council","http://opendatacommunities.org/id/metropolitan-district-council/wolverhampton","SCREWFIX DIRECT",32.92,"Car Parks Operational Staff","5200","Equipment - Purchase","07/04/2020"
"Wolverhampton City Council","http://opendatacommunities.org/id/metropolitan-district-council/wolverhampton","NAMESCO",61.97,"Communications & Marketing - General","4816","R4317","07/04/2020"
"Wolverhampton City Council","http://opendatacommunities.org/id/metropolitan-district-council/wolverhampton","AMZNMktplace",56.28,"EIP Locality 8","5999","Grant Payments","07/04/2020"
"Wolverhampton City Council","http://opendatacommunities.org/id/metropolitan-district-council/wolverhampton","CREEDFOODSERVICE.",4746.28,"COVID 19 - Food Distribution Hub","5811","Provisions (Not for resale)","07/04/2020"
"Wolverhampton City Council","http://opendatacommunities.org/id/metropolitan-district-council/wolverhampton","SPAR GREAT WYRLEY",56,"LAC Transitions Team","5411","-","07/04/2020"
"Wolverhampton City Council","http://opendatacommunities.org/id/metropolitan-district-council/wolverhampton","SAINSBURYS 2040",12.5,"LAC Transitions Accommodation","5411","Client Allowances","07/04/2020"
"Wolverhampton City Council","http://opendatacommunities.org/id/metropolitan-district-council/wolverhampton","AMZNMktplace",12.87,"Power2 Team","5999","Direct Work With Children","07/04/2020"
"Wolverhampton City Council","http://opendatacommunities.org/id/metropolitan-district-council/wolverhampton","AMZNMktplace",9.99,"Power2 Team","5999","Direct Work With Children","07/04/2020"
"Wolverhampton City Council","http://opendatacommunities.org/id/metropolitan-district-council/wolverhampton","CO-OPERATIVE FOOD",15.12,"LAC Transitions Accommodation","5411","Client Allowances","07/04/2020"
"Wolverhampton City Council","http://opendatacommunities.org/id/metropolitan-district-council/wolverhampton","ALDI 772 129",3.32,"LAC Transitions Accommodation","5411","Client Allowances","07/04/2020"
"Wolverhampton City Council","http://opendatacommunities.org/id/metropolitan-district-council/wolverhampton","VIRGIN MEDIA PYMTS",15,"Community Enablement","4814","Comms - Telephone Call charges","07/04/2020"
"Wolverhampton City Council","http://opendatacommunities.org/id/metropolitan-district-council/wolverhampton","Amazon.co.uk 9F4M057T5",10.76,"Independant Living Services","5969","Equipment - Purchase","07/04/2020"
"Wolverhampton City Council","http://opendatacommunities.org/id/metropolitan-district-council/wolverhampton","123 REG LTD",9.99,"Technical Support","5968","Computing - Purchase of Software","07/04/2020"
"Wolverhampton City Council","http://opendatacommunities.org/id/metropolitan-district-council/wolverhampton","000002200500000",50,"LAC Transitions Team","6011","Client Allowances","07/04/2020"
"Wolverhampton City Council","http://opendatacommunities.org/id/metropolitan-district-council/wolverhampton","AMZNMktplace",45.82,"Duke Street Bungalows","5999","Equipment - Purchase","07/04/2020"
"Wolverhampton City Council","http://opendatacommunities.org/id/metropolitan-district-council/wolverhampton","AMZNMKTPLACE AMAZON.CO",31.21,"Parks - Ranger Service","5999","Equipment - Purchase","07/04/2020"
"Wolverhampton City Council","http://opendatacommunities.org/id/metropolitan-district-council/wolverhampton","CO-OP GROUP 070362",8.1,"Northicote Farm","5411","Provisions (Not for resale)","07/04/2020"
"Wolverhampton City Council","http://opendatacommunities.org/id/metropolitan-district-council/wolverhampton","LINKEDIN-545 9749584",3014.8,"Strategic ICTS (ICT Serv Budget)","5968","Computing - Purchase of Software","06/04/2020"
"Wolverhampton City Council","http://opendatacommunities.org/id/metropolitan-district-council/wolverhampton","DHL INTERNATIONAL",22.82,"Supported Accommodation Provider Payment","7399","Equipment - Health and Safety","06/04/2020"
"Wolverhampton City Council","http://opendatacommunities.org/id/metropolitan-district-council/wolverhampton","ARGOS LTD",78.93,"Learning Disabilities Management","5310","Equipment - Purchase","06/04/2020"
"Wolverhampton City Council","http://opendatacommunities.org/id/metropolitan-district-council/wolverhampton","ASDA GROCERIES ONLINE",-23.07,"Key to Inspiration","5411","Subsistence","06/04/2020"
"Wolverhampton City Council","http://opendatacommunities.org/id/metropolitan-district-council/wolverhampton","ASDA GROCERIES ONLINE",231.62,"Key to Inspiration","5411","Subsistence","06/04/2020"
"Wolverhampton City Council","http://opendatacommunities.org/id/metropolitan-district-council/wolverhampton","Just Eat",21.88,"Key to Inspiration","5814","Direct Work With Children","06/04/2020"
"Wolverhampton City Council","http://opendatacommunities.org/id/metropolitan-district-council/wolverhampton","ASDA STORE",81.28,"Bradley Resource Centre","5411","Provisions (Not for resale)","06/04/2020"
"Wolverhampton City Council","http://opendatacommunities.org/id/metropolitan-district-council/wolverhampton","ASDA STORE 4753",25.65,"Bradley Resource Centre","5411","Provisions (Not for resale)","06/04/2020"
"Wolverhampton City Council","http://opendatacommunities.org/id/metropolitan-district-council/wolverhampton","COSTCUTTER JD CONVENIE",13.33,"LAC Transitions Team","5411","Client Allowances","06/04/2020"
"Wolverhampton City Council","http://opendatacommunities.org/id/metropolitan-district-council/wolverhampton","PO OLD HILL 0676",12.5,"LAC Transitions Team","6011","Client Allowances","06/04/2020"
"Wolverhampton City Council","http://opendatacommunities.org/id/metropolitan-district-council/wolverhampton","ASDA SUPERSTORE 04236",1.25,"LAC Transitions Team","5411","Client Allowances","06/04/2020"
"Wolverhampton City Council","http://opendatacommunities.org/id/metropolitan-district-council/wolverhampton","CUMMINGS BROTHERS LOCK",129.6,"Ground Maintenance East","7399","-","06/04/2020"
"Wolverhampton City Council","http://opendatacommunities.org/id/metropolitan-district-council/wolverhampton","SAINSBURYS SACAT (2340",34.99,"LAC Transitions Team","5411","Provisions (Not for resale)","06/04/2020"
"Wolverhampton City Council","http://opendatacommunities.org/id/metropolitan-district-council/wolverhampton","Amazon.co.uk IB92T43M5",41.23,"Youth Offending Team","5969","Direct Work With Children","06/04/2020"
"Wolverhampton City Council","http://opendatacommunities.org/id/metropolitan-district-council/wolverhampton","ROYAL MAIL ONLINE SHOP",76,"Youth Offending Team","9402","Comms - Postage","06/04/2020"
"Wolverhampton City Council","http://opendatacommunities.org/id/metropolitan-district-council/wolverhampton","ROYAL MAIL ONLINE SHOP",76,"Youth Offending Team","9402","Comms - Postage","06/04/2020"
"Wolverhampton City Council","http://opendatacommunities.org/id/metropolitan-district-council/wolverhampton","Amazon.co.uk 8L73B9IY5",104.15,"Youth Offending Team","5969","Printing","06/04/2020"
"Wolverhampton City Council","http://opendatacommunities.org/id/metropolitan-district-council/wolverhampton","WP-CENTRAL TAXIS L",370,"LAC Team","4121","Client Transport","06/04/2020"
"Wolverhampton City Council","http://opendatacommunities.org/id/metropolitan-district-council/wolverhampton","WORKPLACEST",337.74,"Independant Living Services","1520","R4007","06/04/2020"
"Wolverhampton City Council","http://opendatacommunities.org/id/metropolitan-district-council/wolverhampton","AMZNMktplace",19.07,"LAC Transitions Team","5999","Client Allowances","06/04/2020"
"Wolverhampton City Council","http://opendatacommunities.org/id/metropolitan-district-council/wolverhampton","WM MORRISONS STORE",16.45,"Ernest Bold Court","5411","Provisions (Not for resale)","06/04/2020"
"Wolverhampton City Council","http://opendatacommunities.org/id/metropolitan-district-council/wolverhampton","AMZNMktplace",15.82,"Duke Street Bungalows","5999","Equipment - Purchase","06/04/2020"
"Wolverhampton City Council","http://opendatacommunities.org/id/metropolitan-district-council/wolverhampton","AMZNMktplace",3.96,"Ernest Bold Court","5999","Materials","06/04/2020"
"Wolverhampton City Council","http://opendatacommunities.org/id/metropolitan-district-council/wolverhampton","AMZNMktplace",3.96,"Ernest Bold Court","5999","Materials","06/04/2020"
"Wolverhampton City Council","http://opendatacommunities.org/id/metropolitan-district-council/wolverhampton","AMZNMktplace",3.96,"Ernest Bold Court","5999","Materials","06/04/2020"
"Wolverhampton City Council","http://opendatacommunities.org/id/metropolitan-district-council/wolverhampton","AMZNMktplace",3.96,"Ernest Bold Court","5999","Materials","06/04/2020"
"Wolverhampton City Council","http://opendatacommunities.org/id/metropolitan-district-council/wolverhampton","AMZNMktplace",3.96,"Ernest Bold Court","5999","Materials","06/04/2020"
"Wolverhampton City Council","http://opendatacommunities.org/id/metropolitan-district-council/wolverhampton","AMZNMktplace",3.96,"Ernest Bold Court","5999","Materials","06/04/2020"
"Wolverhampton City Council","http://opendatacommunities.org/id/metropolitan-district-council/wolverhampton","AMZNMktplace",3.96,"Ernest Bold Court","5999","Materials","06/04/2020"
"Wolverhampton City Council","http://opendatacommunities.org/id/metropolitan-district-council/wolverhampton","AMZNMktplace",3.96,"Ernest Bold Court","5999","Materials","06/04/2020"
"Wolverhampton City Council","http://opendatacommunities.org/id/metropolitan-district-council/wolverhampton","AMZNMktplace",3.96,"Ernest Bold Court","5999","Materials","06/04/2020"
"Wolverhampton City Council","http://opendatacommunities.org/id/metropolitan-district-council/wolverhampton","AMZNMKTPLACE AMAZON.CO",3.96,"Ernest Bold Court","5999","R4007","06/04/2020"
"Wolverhampton City Council","http://opendatacommunities.org/id/metropolitan-district-council/wolverhampton","AMZNMKTPLACE AMAZON.CO",3.96,"Ernest Bold Court","5999","Materials","06/04/2020"
"Wolverhampton City Council","http://opendatacommunities.org/id/metropolitan-district-council/wolverhampton","AMZNMKTPLACE AMAZON.CO",3.96,"Ernest Bold Court","5999","Materials","06/04/2020"
"Wolverhampton City Council","http://opendatacommunities.org/id/metropolitan-district-council/wolverhampton","REESINK TURFCARE - ST",51.29,"Fleet Management","5599","Equipment - Purchase","06/04/2020"
"Wolverhampton City Council","http://opendatacommunities.org/id/metropolitan-district-council/wolverhampton","RS SALES & DISTRIBUTIO",-590,"COVID 19 - Personal Protective equipment","5999","Protective Clothing","06/04/2020"
"Wolverhampton City Council","http://opendatacommunities.org/id/metropolitan-district-council/wolverhampton","WWW.FTA.CO.UK",1152,"COVID 19 - Personal Protective equipment","8999","Protective Clothing","06/04/2020"
"Wolverhampton City Council","http://opendatacommunities.org/id/metropolitan-district-council/wolverhampton","PAYPAL  HORNER SHEA",225,"Northicote Farm","5099","Equipment - Purchase","06/04/2020"
"Wolverhampton City Council","http://opendatacommunities.org/id/metropolitan-district-council/wolverhampton","PAYPAL  WICKESBUILD",136.67,"Northicote Farm","5099","Materials","06/04/2020"
"Wolverhampton City Council","http://opendatacommunities.org/id/metropolitan-district-council/wolverhampton","EBUYER (UK) LTD",159.78,"Strategic ICTS (ICT Serv Budget)","5722","Computing - Consumables","03/04/2020"
"Wolverhampton City Council","http://opendatacommunities.org/id/metropolitan-district-council/wolverhampton","123 REG LTD",130.96,"Strategic ICTS (ICT Serv Budget)","4816","Computing - Maint Agreements","03/04/2020"
"Wolverhampton City Council","http://opendatacommunities.org/id/metropolitan-district-council/wolverhampton","ROYAL BK OF SCOTLAND",60,"LAC Transitions Team","6011","Client Allowances","03/04/2020"
"Wolverhampton City Council","http://opendatacommunities.org/id/metropolitan-district-council/wolverhampton","CREEDFOODSERVICE.",1577.2,"ALV - Darts & Comedy","5811","-","03/04/2020"
"Wolverhampton City Council","http://opendatacommunities.org/id/metropolitan-district-council/wolverhampton","SETON",284.4,"ALV - Darts & Comedy","5099","-","03/04/2020"
"Wolverhampton City Council","http://opendatacommunities.org/id/metropolitan-district-council/wolverhampton","GOCABLETIES LTD",54.04,"ALV - Darts & Comedy","5712","-","03/04/2020"
"Wolverhampton City Council","http://opendatacommunities.org/id/metropolitan-district-council/wolverhampton","WWW.INSTOCKGROUP.CO.UK",-34.68,"Bradley Resource Centre","5999","Cleaning Supplies and Materials","03/04/2020"
"Wolverhampton City Council","http://opendatacommunities.org/id/metropolitan-district-council/wolverhampton","WWW.INSTOCKGROUP.CO.UK",34.68,"Bradley Resource Centre","5999","Cleaning Supplies and Materials","03/04/2020"
"Wolverhampton City Council","http://opendatacommunities.org/id/metropolitan-district-council/wolverhampton","SCREWFIX DIRECT",6.3,"Cemeteries","5200","-","03/04/2020"
"Wolverhampton City Council","http://opendatacommunities.org/id/metropolitan-district-council/wolverhampton","SCREWFIX DIRECT",17.35,"Cemeteries","5200","-","03/04/2020"
"Wolverhampton City Council","http://opendatacommunities.org/id/metropolitan-district-council/wolverhampton","ALDI 772 129",9.77,"LAC Transitions Team","5411","Financial Assistance In Exceptional Circ","03/04/2020"
"Wolverhampton City Council","http://opendatacommunities.org/id/metropolitan-district-council/wolverhampton","ALDI STORES LTD",3.25,"LAC Transitions Team","5411","Financial Assistance In Exceptional Circ","03/04/2020"
"Wolverhampton City Council","http://opendatacommunities.org/id/metropolitan-district-council/wolverhampton","WP-CENTRAL TAXIS L",292,"LAC Team","4121","Client Transport","03/04/2020"
"Wolverhampton City Council","http://opendatacommunities.org/id/metropolitan-district-council/wolverhampton","000002200500000",100,"Wolverhampton Indoor and Open Market","6011","Equipment - Purchase","03/04/2020"
"Wolverhampton City Council","http://opendatacommunities.org/id/metropolitan-district-council/wolverhampton","ARGOS LTD",130.82,"Learning Disabilities Management","5310","Equipment - Purchase","03/04/2020"
"Wolverhampton City Council","http://opendatacommunities.org/id/metropolitan-district-council/wolverhampton","000002200500000",25,"LAC Transitions Team","6011","Client Allowances","03/04/2020"
"Wolverhampton City Council","http://opendatacommunities.org/id/metropolitan-district-council/wolverhampton","Amazon.co.uk DV1XH9XT5",129.1,"Music Support Team","5969","Equipment - Purchase","03/04/2020"
"Wolverhampton City Council","http://opendatacommunities.org/id/metropolitan-district-council/wolverhampton","TFM FARM   COUNTRY",192.87,"Northicote Farm","0763","Equipment - Purchase","03/04/2020"
"Wolverhampton City Council","http://opendatacommunities.org/id/metropolitan-district-council/wolverhampton","TFM FARM   COUNTRY",60.49,"Northicote Farm","0763","Equipment - Purchase","03/04/2020"
"Wolverhampton City Council","http://opendatacommunities.org/id/metropolitan-district-council/wolverhampton","ASDA STORE",101.38,"Bradley Resource Centre","5411","Provisions (Not for resale)","02/04/2020"
"Wolverhampton City Council","http://opendatacommunities.org/id/metropolitan-district-council/wolverhampton","WWW.CORAM.ORG.UK",32.5,"Regional Adoption Agency","8398","Books","02/04/2020"
"Wolverhampton City Council","http://opendatacommunities.org/id/metropolitan-district-council/wolverhampton","WWW.CORAM.ORG.UK",67.5,"Regional Adoption Agency","8398","Books","02/04/2020"
"Wolverhampton City Council","http://opendatacommunities.org/id/metropolitan-district-council/wolverhampton","MSC INDUSTRIAL SUPPLY",243,"Ground Maintenance East","5085","-","02/04/2020"
"Wolverhampton City Council","http://opendatacommunities.org/id/metropolitan-district-council/wolverhampton","PAYPAL  LAWRAR EBAY LA",28.99,"Bert Williams Leisure Centre","5999","-","02/04/2020"
"Wolverhampton City Council","http://opendatacommunities.org/id/metropolitan-district-council/wolverhampton","WP-CENTRAL TAXIS L",-6.1,"Corporate Parenting","4121","Public Transport","02/04/2020"
"Wolverhampton City Council","http://opendatacommunities.org/id/metropolitan-district-council/wolverhampton","SAINSBURYS 2040",12.49,"LAC Transitions Team","5411","Comms - Mobile Telephones","02/04/2020"
"Wolverhampton City Council","http://opendatacommunities.org/id/metropolitan-district-council/wolverhampton","UPPALS SELECT AND SAVE",16.72,"LAC Transitions Team","5411","Provisions (Not for resale)","02/04/2020"
"Wolverhampton City Council","http://opendatacommunities.org/id/metropolitan-district-council/wolverhampton","WWW.VOUCHEREXPRESS.CO.",230.75,"Youth Offending Team","5947","Provisions (Not for resale)","02/04/2020"
"Wolverhampton City Council","http://opendatacommunities.org/id/metropolitan-district-council/wolverhampton","WP-CENTRAL TAXIS L",370,"LAC Team","4121","Client Transport","02/04/2020"
"Wolverhampton City Council","http://opendatacommunities.org/id/metropolitan-district-council/wolverhampton","ARGOS LTD",99.99,"Looked After Team 2","5310","Financial Assistance In Exceptional Circ","02/04/2020"
"Wolverhampton City Council","http://opendatacommunities.org/id/metropolitan-district-council/wolverhampton","EB  5-PART WEBINAR SER",156,"Apprenticeships","7399","Training Expenses","02/04/2020"
"Wolverhampton City Council","http://opendatacommunities.org/id/metropolitan-district-council/wolverhampton","123 REG LTD",54.94,"Strategic ICTS (ICT Serv Budget)","4816","Computing - Maint Agreements","02/04/2020"
"Wolverhampton City Council","http://opendatacommunities.org/id/metropolitan-district-council/wolverhampton","123 REG LTD",54.94,"Strategic ICTS (ICT Serv Budget)","4816","Computing - Maint Agreements","02/04/2020"
"Wolverhampton City Council","http://opendatacommunities.org/id/metropolitan-district-council/wolverhampton","WWW.SCOTTISH.SOUTHERN.",105.47,"LAC Transitions Team","4900","Client Allowances","02/04/2020"
"Wolverhampton City Council","http://opendatacommunities.org/id/metropolitan-district-council/wolverhampton","SSE",163.72,"LAC Transitions Team","4900","Client Allowances","02/04/2020"
"Wolverhampton City Council","http://opendatacommunities.org/id/metropolitan-district-council/wolverhampton","WP-THE CRATFS COUNCIL",98.85,"Audience Development","8398","Marketing \ Non-staff advertising","02/04/2020"
"Wolverhampton City Council","http://opendatacommunities.org/id/metropolitan-district-council/wolverhampton","AMZNMKTPLACE AMAZON.CO",129.2,"Key to Inspiration","5999","Equipment - Health and Safety","02/04/2020"
"Wolverhampton City Council","http://opendatacommunities.org/id/metropolitan-district-council/wolverhampton","PAYPAL  SOUTHERNSAL",-183.62,"MI Friendly Cities","5699","Equipment - Health and Safety","01/04/2020"
"Wolverhampton City Council","http://opendatacommunities.org/id/metropolitan-district-council/wolverhampton","PAYPAL  BAICHUANGUA EB",53.78,"Supported Accommodation Provider Payment","5137","Equipment - Health and Safety","01/04/2020"
"Wolverhampton City Council","http://opendatacommunities.org/id/metropolitan-district-council/wolverhampton","PAYPAL  PCLMEDIALTD EB",40.61,"Supported Accommodation Provider Payment","2741","Equipment - Health and Safety","01/04/2020"
"Wolverhampton City Council","http://opendatacommunities.org/id/metropolitan-district-council/wolverhampton","ROYAL BK OF SCOTLAND",60,"LAC Transitions Team","6011","Independant Living Allowance","01/04/2020"
"Wolverhampton City Council","http://opendatacommunities.org/id/metropolitan-district-council/wolverhampton","BRUTONS PHARMACY",1263.9,"Learning Disabilities Management","5912","R4404","01/04/2020"
"Wolverhampton City Council","http://opendatacommunities.org/id/metropolitan-district-council/wolverhampton","POST OFFICE COUNTER",65,"Macmillan Welfare Rights","9402","Stationery","01/04/2020"
"Wolverhampton City Council","http://opendatacommunities.org/id/metropolitan-district-council/wolverhampton","FACEBK 43FFES2AR2",289.29,"Communications & Marketing - General","7311","R4317","01/04/2020"
"Wolverhampton City Council","http://opendatacommunities.org/id/metropolitan-district-council/wolverhampton","FACEBK 4RCWBRSG52",312.89,"Audience Development","7311","R4317","01/04/2020"
"Wolverhampton City Council","http://opendatacommunities.org/id/metropolitan-district-council/wolverhampton","AMZNMktplace",93.24,"COVID 19 - Food Distribution Hub","5999","Equipment - Purchase","01/04/2020"
"Wolverhampton City Council","http://opendatacommunities.org/id/metropolitan-district-council/wolverhampton","AMZNMktplace",17.48,"CIN/CP Social Work Unit - Area 1","5999","Section 17","01/04/2020"
"Wolverhampton City Council","http://opendatacommunities.org/id/metropolitan-district-council/wolverhampton","WP-CENTRAL TAXIS L",235.4,"Pupil Premium","4121","Public Transport","01/04/2020"
"Wolverhampton City Council","http://opendatacommunities.org/id/metropolitan-district-council/wolverhampton","CardtronicsUK",60,"LAC Transitions Team","6011","Provisions (Not for resale)","01/04/2020"
"Wolverhampton City Council","http://opendatacommunities.org/id/metropolitan-district-council/wolverhampton","SCREWFIX DIRECT",22.4,"Cemeteries","5200","Equipment - Purchase","01/04/2020"
"Wolverhampton City Council","http://opendatacommunities.org/id/metropolitan-district-council/wolverhampton","WP-CENTRAL TAXIS L",19.6,"CIN/CP Social Work Unit - Area 7","4121","Section 17","01/04/2020"
"Wolverhampton City Council","http://opendatacommunities.org/id/metropolitan-district-council/wolverhampton","1 AND 1 IONOS LTD",16.1,"Technical Support","4816","Computing - Purchase of Software","01/04/2020"
"Wolverhampton City Council","http://opendatacommunities.org/id/metropolitan-district-council/wolverhampton","TESCO STORES 5503",17.5,"Meals on Wheels","5411","Computing - Consumables","01/04/2020"
"Wolverhampton City Council","http://opendatacommunities.org/id/metropolitan-district-council/wolverhampton","AMZNMKTPLACE AMAZON.CO",133.25,"COVID 19 - Personal Protective equipment","5999","Protective Clothing","01/04/2020"
